fUSD/lending_fUSD_20260510
["ID","MTS","AMOUNT","RATE_DAILY","PERIOD"]
[421991348,1778423164000,180.11,7.18e-05,2]
[421991351,1778423165000,180.11,8.269e-05,2]
[421991352,1778423165000,180.11,8.632e-05,2]
[421991354,1778423165000,180.11,9.358e-05,2]
[421991355,1778423165000,180.11,9.722e-05,2]
[421991353,1778423165000,180.11,8.995e-05,2]
[421991356,1778423166000,180.11,0.00010085,2]
[421991357,1778423231000,500.0,0.00041002,120]
[421991358,1778423242000,500.0,0.00041002,120]
[421991359,1778423243000,501.03097108,0.00041002,120]
[421991367,1778423249000,-105.06744778,0.00012626,2]
[421991366,1778423249000,-180.11,0.00012263,2]
[421991364,1778423249000,-180.11,0.00011537,2]
[421991365,1778423249000,-180.11,0.000119,2]
[421991363,1778423249000,-180.11,0.00011174,2]
[421991362,1778423249000,-150.0,0.00011008,2]
[421991361,1778423249000,-180.11,0.00010811,2]
[421991360,1778423249000,-180.11,0.00010448,2]
[421991369,1778423351000,-180.11,0.00012989,2]
[421991370,1778423351000,-106.20178423,0.00013352,2]
[421991371,1778423351000,150.0,0.00041002,120]
[421991368,1778423351000,-75.04255222,0.00012626,2]
[421991385,1778423432000,-4640.77,0.00014318,2]
[421991396,1778423432000,-4699.33587529,0.00014712,2]
[421991393,1778423432000,-9999.99,0.00014484,2]
[421991398,1778423432000,-322579.9252,0.000148,2]
[421991388,1778423432000,-300.0,0.00014483,2]
[421991391,1778423432000,-999.99,0.00014484,2]
[421991389,1778423432000,-1200.0,0.00014483,2]
[421991390,1778423432000,-155.95,0.00014484,2]
[421991394,1778423432000,-9999.99,0.00014484,2]
[421991395,1778423432000,-300.0,0.00014687,2]
[421991387,1778423432000,-300.0,0.00014483,2]
[421991377,1778423432000,-2630.16548506,0.00013899,2]
[421991386,1778423432000,-433.23,0.00014318,2]
[421991383,1778423432000,-181.18,0.00014318,2]
[421991382,1778423432000,-200.0,0.00014221,2]
[421991381,1778423432000,-180.11,0.00014078,2]
[421991379,1778423432000,-1582.15,0.00013901,2]
[421991378,1778423432000,-7369.84451494,0.00013899,2]
[421991380,1778423432000,-250.0,0.00014,2]
[421991374,1778423432000,-170.28,0.00013699,2]
[421991376,1778423432000,-175.42,0.00013851,2]
[421991375,1778423432000,-180.11,0.00013715,2]
[421991373,1778423432000,-73.90821577,0.00013352,2]
[421991384,1778423432000,-150.99,0.00014318,2]
[421991397,1778423432000,-150.0,0.00014799,2]
[421991392,1778423432000,-299.99,0.00014484,2]
[421991409,1778423432000,-1000.0,0.0001491,2]
[421991408,1778423432000,-34109.1738548,0.00014909,2]
[421991439,1778423432000,-500.0,0.0001491,2]
[421991433,1778423432000,-38.59008548,0.0001491,2]
[421991437,1778423432000,-500.0,0.0001491,2]
[421991435,1778423432000,-500.0,0.0001491,2]
[421991421,1778423432000,-500.0,0.0001491,2]
[421991419,1778423432000,-500.0,0.0001491,2]
[421991413,1778423432000,-500.0,0.0001491,2]
[421991423,1778423432000,-500.0,0.0001491,2]
[421991428,1778423432000,-4.61015896,0.0001491,2]
[421991425,1778423432000,-495.38984104,0.0001491,2]
[421991430,1778423432000,-461.40991452,0.0001491,2]
[421991441,1778423432000,-391.25679693,0.0001491,2]
[421991415,1778423432000,-113.63624877,0.0001491,2]
[421991417,1778423432000,-500.0,0.0001491,2]
[421991402,1778423432000,-200.0,0.00014835,2]
[421991399,1778423432000,-3982.40721693,0.00014812,2]
[421991400,1778423432000,-692.422,0.00014812,2]
[421991401,1778423432000,-170.28,0.00014832,2]
[421991403,1778423432000,-249.22264444,0.00014837,2]
[421991404,1778423432000,-16573.9738,0.000149,2]
[421991406,1778423432000,-15184.2485389,0.00014907,2]
[421991411,1778423432000,-537.93328249,0.0001491,2]
[421991412,1778423432000,-500.0,0.0001491,2]
[421991414,1778423432000,-443.2192033,0.0001491,2]
[421991405,1778423432000,-2080.17592889,0.00014903,2]
[421991493,1778423438000,-500.0,0.0001491,2]
[421991484,1778423438000,-500.0,0.0001491,2]
[421991492,1778423438000,-500.0,0.0001491,2]
[421991489,1778423438000,-500.0,0.0001491,2]
[421991491,1778423438000,-500.0,0.0001491,2]
[421991485,1778423438000,-500.0,0.0001491,2]
[421991480,1778423438000,-500.0,0.0001491,2]
[421991487,1778423438000,-500.0,0.0001491,2]
[421991483,1778423438000,-500.0,0.0001491,2]
[421991477,1778423438000,-104.87735866,0.0001491,2]
[421991482,1778423438000,-500.0,0.0001491,2]
[421991481,1778423438000,-641.03967892,0.0001491,2]
[421991488,1778423438000,-500.0,0.0001491,2]
[421991486,1778423438000,-500.0,0.0001491,2]
[421991478,1778423438000,-180.72264934,0.0001491,2]
[421991476,1778423438000,-395.12264134,0.0001491,2]
[421991475,1778423438000,-108.74320307,0.0001491,2]
[421991490,1778423438000,-500.0,0.0001491,2]
[421991479,1778423438000,-319.27735066,0.0001491,2]
[421991495,1778423438000,-500.0,0.0001491,2]
[421991505,1778423438000,-500.0,0.0001491,2]
[421991497,1778423438000,-500.0,0.0001491,2]
[421991514,1778423438000,-500.0,0.0001491,2]
[421991513,1778423438000,-500.0,0.0001491,2]
[421991515,1778423438000,-500.0,0.0001491,2]
[421991512,1778423438000,-500.0,0.0001491,2]
[421991511,1778423438000,-500.0,0.0001491,2]
[421991508,1778423438000,-500.0,0.0001491,2]
[421991509,1778423438000,-500.0,0.0001491,2]
[421991496,1778423438000,-500.0,0.0001491,2]
[421991507,1778423438000,-500.0,0.0001491,2]
[421991510,1778423438000,-500.0,0.0001491,2]
[421991503,1778423438000,-500.0,0.0001491,2]
[421991502,1778423438000,-500.0,0.0001491,2]
[421991504,1778423438000,-500.0,0.0001491,2]
[421991500,1778423438000,-500.0,0.0001491,2]
[421991501,1778423438000,-500.0,0.0001491,2]
[421991494,1778423438000,-500.0,0.0001491,2]
[421991499,1778423438000,-500.0,0.0001491,2]
[421991498,1778423438000,-500.0,0.0001491,2]
[421991506,1778423438000,-500.0,0.0001491,2]
[421991518,1778423439000,-500.0,0.0001491,2]
[421991517,1778423439000,-500.0,0.0001491,2]
[421991522,1778423439000,-500.0,0.0001491,2]
[421991520,1778423439000,-500.0,0.0001491,2]
[421991516,1778423439000,-500.0,0.0001491,2]
[421991519,1778423439000,-500.0,0.0001491,2]
[421991521,1778423439000,-500.0,0.0001491,2]
[421991523,1778423439000,-500.0,0.0001491,2]
[421991526,1778423439000,-500.0,0.0001491,2]
[421991527,1778423439000,-500.0,0.0001491,2]
[421991529,1778423439000,-300.0,0.0001491,2]
[421991530,1778423439000,-479.26710403,0.0001491,2]
[421991525,1778423439000,-500.0,0.0001491,2]
[421991524,1778423439000,-500.0,0.0001491,2]
[421991528,1778423439000,-500.0,0.0001491,2]
[421991533,1778423440000,-371.19123723,0.0001491,2]
[421991531,1778423440000,-20.73289597,0.0001491,2]
[421991532,1778423440000,-500.0,0.0001491,2]
[421991534,1778423440000,301.0,0.00041002,120]
[421991535,1778423440000,-128.80876277,0.0001491,2]
[421991537,1778423440000,-500.0,0.00014911,2]
[421991538,1778423440000,-500.0,0.00014911,2]
[421991539,1778423440000,-248.4277885,0.00014912,2]
[421991541,1778423440000,-76992.6703673,0.00014912,2]
[421991540,1778423440000,-16289.3688588,0.00014912,2]
[421991536,1778423440000,-500.0,0.0001491,2]
[421991556,1778423443000,-316.220239,0.00014912,2]
[421991555,1778423443000,-30591.81536345,0.00014912,2]
[421991554,1778423443000,-23771.10118,0.00014912,2]
[421991553,1778423443000,-3843.89820875,0.00014912,2]
[421991595,1778423444000,-3016.54,0.00016462,2]
[421991602,1778423444000,-4699.33587527,0.00017622,2]
[421991597,1778423444000,-500.0,0.00017006,2]
[421991593,1778423444000,-208.10422263,0.00016241,2]
[421991608,1778423444000,-350.0,0.00018,2]
[421991592,1778423444000,-214.7734975,0.00016241,2]
[421991586,1778423444000,-224.29,0.00015883,2]
[421991588,1778423444000,-1680.0,0.00015931,2]
[421991584,1778423444000,-360.0,0.00015859,2]
[421991596,1778423444000,-1511.49748366,0.00016547,2]
[421991594,1778423444000,-276.73023114,0.00016438,2]
[421991603,1778423444000,-3982.40721688,0.00017711,2]
[421991605,1778423444000,-1237.00321085,0.0001789,2]
[421991600,1778423444000,-1582.15,0.00017376,2]
[421991599,1778423444000,-433.0,0.00017137,2]
[421991604,1778423444000,-151.0,0.00017888,2]
[421991601,1778423444000,-2205.0,0.00017525,2]
[421991616,1778423444000,-3004.45732984,0.0002,2]
[421991606,1778423444000,-1205.27261169,0.00018,2]
[421991609,1778423444000,-155.95,0.00018105,2]
[421991607,1778423444000,-1043.86844158,0.00018,2]
[421991585,1778423444000,-165.27,0.00015879,2]
[421991611,1778423444000,-150.0,0.00018622,2]
[421991610,1778423444000,-150.0,0.00018622,2]
[421991598,1778423444000,-11200.60122886,0.00017007,2]
[421991587,1778423444000,-255.0,0.00015924,2]
[421991575,1778423444000,-151.0,0.00015,2]
[421991581,1778423444000,-1582.15,0.00015639,2]
[421991560,1778423444000,-72773.5188661,0.00014912,2]
[421991563,1778423444000,-327.365286,0.00014912,2]
[421991564,1778423444000,-15656.53248743,0.00014912,2]
[421991562,1778423444000,-340.84690873,0.00014912,2]
[421991565,1778423444000,-4753.7370219,0.00014912,2]
[421991567,1778423444000,-153.12137068,0.00014925,2]
[421991570,1778423444000,-133210.98688997,0.00015,2]
[421991566,1778423444000,-1369.30387443,0.00014915,2]
[421991561,1778423444000,-62723.04675634,0.00014912,2]
[421991569,1778423444000,-500.0,0.00014999,2]
[421991572,1778423444000,-232.90451,0.00015,2]
[421991571,1778423444000,-232.90451,0.00015,2]
[421991574,1778423444000,-232.90451,0.00015,2]
[421991573,1778423444000,-232.90451,0.00015,2]
[421991576,1778423444000,-600.0,0.00015065,2]
[421991577,1778423444000,-416.52,0.00015167,2]
[421991579,1778423444000,-2157.14243826,0.00015451,2]
[421991578,1778423444000,-3016.54,0.00015339,2]
[421991590,1778423444000,-300.0,0.00016,2]
[421991589,1778423444000,-2236.95670848,0.00015999,2]
[421991591,1778423444000,-3016.54,0.00016088,2]
[421991580,1778423444000,-186.06,0.00015609,2]
[421991582,1778423444000,-3016.54,0.00015713,2]
[421991583,1778423444000,-2500.0,0.00015778,2]
[421991614,1778423444000,-200.0,0.0002,2]
[421991568,1778423444000,-3016.54,0.00014965,2]
[421991615,1778423444000,-13074.60135531,0.0002,2]
[421991645,1778423444000,-155.95,0.00021726,2]
[421991643,1778423444000,-1004.42,0.00021273,2]
[421991646,1778423444000,-5000.0,0.00021918,2]
[421991650,1778423444000,-188.0,0.00022,2]
[421991654,1778423444000,-186.368552,0.00022256,14]
[421991648,1778423444000,-300.0,0.00022,2]
[421991653,1778423444000,-168.9,0.0002223,2]
[421991647,1778423444000,-160.0,0.00022,2]
[421991651,1778423444000,-643.0,0.00022,2]
[421991652,1778423444000,-243.39064591,0.0002211,2]
[421991656,1778423444000,-3652.61465637,0.000226,2]
[421991644,1778423444000,-248.4277885,0.00021374,2]
[421991659,1778423444000,-159.0,0.00023,2]
[421991667,1778423444000,-1151.53426752,0.0002421,2]
[421991661,1778423444000,-643.0,0.00023,2]
[421991658,1778423444000,-803.8514923,0.00023,2]
[421991664,1778423444000,-159.0,0.00024,2]
[421991660,1778423444000,-188.0,0.00023,2]
[421991657,1778423444000,-530.18764121,0.0002271,2]
[421991663,1778423444000,-3982.40721688,0.00023509,2]
[421991662,1778423444000,-4699.33587527,0.00023442,2]
[421991665,1778423444000,-188.0,0.00024,2]
[421991668,1778423444000,-186.368551,0.000245,14]
[421991613,1778423444000,-2033.48,0.00019178,2]
[421991655,1778423444000,-1369.30387443,0.00022394,2]
[421991649,1778423444000,-159.0,0.00022,2]
[421991666,1778423444000,-643.0,0.00024,2]
[421991636,1778423444000,-1582.15,0.00020852,2]
[421991612,1778423444000,-1582.15,0.00019114,2]
[421991642,1778423444000,-175.42,0.00021248,2]
[421991617,1778423444000,-159.0,0.0002,2]
[421991628,1778423444000,-500.0,0.00020547,2]
[421991618,1778423444000,-188.0,0.0002,2]
[421991629,1778423444000,-500.0,0.00020547,2]
[421991620,1778423444000,-2712.0,0.0002,2]
[421991625,1778423444000,-500.0,0.00020482,2]
[421991622,1778423444000,-150.15,0.00020354,2]
[421991621,1778423444000,-185.84,0.0002012,2]
[421991619,1778423444000,-643.0,0.0002,2]
[421991624,1778423444000,-500.0,0.00020482,2]
[421991627,1778423444000,-4699.33587527,0.00020532,2]
[421991626,1778423444000,-500.0,0.00020482,2]
[421991623,1778423444000,-500.0,0.00020482,2]
[421991638,1778423444000,-159.0,0.00021,2]
[421991637,1778423444000,-424.55404228,0.00020937,2]
[421991640,1778423444000,-643.0,0.00021,2]
[421991639,1778423444000,-188.0,0.00021,2]
[421991635,1778423444000,-3982.40721688,0.0002061,2]
[421991634,1778423444000,-4996.9,0.00020548,2]
[421991630,1778423444000,-500.0,0.00020547,2]
[421991641,1778423444000,-416.52,0.00021234,2]
[421991633,1778423444000,-4996.9,0.00020548,2]
[421991631,1778423444000,-4996.9,0.00020548,2]
[421991632,1778423444000,-4996.9,0.00020548,2]
[421991709,1778423445000,-155.97,0.000267,7]
[421991710,1778423445000,-154.88,0.000267,7]
[421991704,1778423445000,-53760.78099193,0.000255,2]
[421991705,1778423445000,-197.76,0.00025518,7]
[421991702,1778423445000,-926.0,0.00025233,2]
[421991701,1778423445000,-624.0,0.00025233,2]
[421991703,1778423445000,-151.0,0.00025497,7]
[421991700,1778423445000,-1269.0,0.00025233,2]
[421991707,1778423445000,-1004.42,0.00025786,2]
[421991708,1778423445000,-3982.40721688,0.00026408,2]
[421991712,1778423445000,-2000.0,0.00027,2]
[421991706,1778423445000,-197.67,0.00025518,7]
[421991714,1778423445000,-2000.0,0.00027,14]
[421991724,1778423445000,-500.0,0.00027123,2]
[421991711,1778423445000,-151.0,0.00026997,7]
[421991713,1778423445000,-250.0,0.00027,2]
[421991716,1778423445000,-530.0,0.00027,2]
[421991717,1778423445000,-2545.582261,0.0002701,2]
[421991718,1778423445000,-500.0,0.00027123,2]
[421991720,1778423445000,-500.0,0.00027123,2]
[421991728,1778423445000,-500.0,0.00027123,2]
[421991719,1778423445000,-500.0,0.00027123,2]
[421991721,1778423445000,-500.0,0.00027123,2]
[421991722,1778423445000,-500.0,0.00027123,2]
[421991723,1778423445000,-500.0,0.00027123,2]
[421991698,1778423445000,-150.295,0.00025233,2]
[421991715,1778423445000,-1047.57155987,0.00027,2]
[421991699,1778423445000,-150.0,0.00025233,2]
[421991672,1778423445000,-186.37,0.00024658,2]
[421991696,1778423445000,-150.0,0.00025233,2]
[421991669,1778423445000,-16289.3688588,0.00024605,2]
[421991674,1778423445000,-197.76,0.00024658,2]
[421991727,1778423445000,-500.0,0.00027123,2]
[421991673,1778423445000,-151.0,0.00024658,2]
[421991679,1778423445000,-2000.0,0.00025,2]
[421991680,1778423445000,-7213.7318993,0.00025,2]
[421991670,1778423445000,-151.0,0.00024605,2]
[421991675,1778423445000,-150.0,0.00024658,2]
[421991671,1778423445000,-1000.0,0.00024658,2]
[421991676,1778423445000,-155.97,0.00024658,2]
[421991681,1778423445000,-2226.65218536,0.00025,2]
[421991678,1778423445000,-154.88,0.00024658,2]
[421991677,1778423445000,-197.67,0.00024658,2]
[421991683,1778423445000,-4847.93005185,0.00025,2]
[421991682,1778423445000,-169.3128186,0.00025,2]
[421991694,1778423445000,-151.0,0.00025,2]
[421991693,1778423445000,-232.90451,0.00025,2]
[421991687,1778423445000,-205.0,0.00025,2]
[421991684,1778423445000,-150.82697064,0.00025,2]
[421991690,1778423445000,-232.90451,0.00025,2]
[421991695,1778423445000,-166.732,0.00025233,2]
[421991685,1778423445000,-150.0,0.00025,2]
[421991692,1778423445000,-232.90451,0.00025,2]
[421991689,1778423445000,-151.0,0.00025,2]
[421991686,1778423445000,-161.61511256,0.00025,2]
[421991688,1778423445000,-660.00624042,0.00025,2]
[421991691,1778423445000,-232.90451,0.00025,2]
[421991697,1778423445000,-150.348,0.00025233,2]
[421991726,1778423445000,-500.0,0.00027123,2]
[421991725,1778423445000,-500.0,0.00027123,2]
[421991730,1778423445000,-500.0,0.00027123,2]
[421991761,1778423445000,-150.0,0.00028233,2]
[421991762,1778423445000,-745.001,0.00028233,2]
[421991765,1778423445000,-500.0,0.00028268,5]
[421991773,1778423445000,-175.42,0.00028646,120]
[421991772,1778423445000,-186.37,0.0002831,2]
[421991775,1778423445000,-154.88,0.00028743,30]
[421991769,1778423445000,-500.0,0.00028268,5]
[421991774,1778423445000,-155.97,0.00028743,30]
[421991771,1778423445000,-500.6821392,0.00028268,5]
[421991767,1778423445000,-500.0,0.00028268,5]
[421991768,1778423445000,-165.7412106,0.00028268,5]
[421991766,1778423445000,-500.0,0.00028268,5]
[421991777,1778423445000,-3982.40721688,0.00029306,2]
[421991770,1778423445000,-165.55298684,0.00028268,5]
[421991779,1778423445000,-232.90451,0.00029307,7]
[421991789,1778423445000,-51268.5822567,0.00029364,2]
[421991778,1778423445000,-232.90451,0.00029307,7]
[421991780,1778423445000,-232.90451,0.00029307,7]
[421991781,1778423445000,-232.90451,0.00029307,7]
[421991782,1778423445000,-151.0,0.00029307,7]
[421991785,1778423445000,-151.0,0.00029307,2]
[421991786,1778423445000,-151.0,0.00029307,2]
[421991783,1778423445000,-151.0,0.00029307,2]
[421991784,1778423445000,-151.0,0.00029307,2]
[421991788,1778423445000,-293.231238,0.00029307,2]
[421991787,1778423445000,-151.0,0.00029307,2]
[421991729,1778423445000,-500.0,0.00027123,2]
[421991759,1778423445000,-150.0,0.00028233,2]
[421991760,1778423445000,-150.0,0.00028233,2]
[421991776,1778423445000,-164.72,0.00028888,2]
[421991755,1778423445000,-274.715704,0.00028,7]
[421991739,1778423445000,-300.0,0.00027397,2]
[421991758,1778423445000,-150.0,0.00028233,2]
[421991740,1778423445000,-151.0,0.00027397,2]
[421991738,1778423445000,-1000.0,0.00027397,20]
[421991737,1778423445000,-214.7734975,0.00027397,10]
[421991731,1778423445000,-530.85034362,0.00027123,2]
[421991733,1778423445000,-366.28294179,0.00027387,2]
[421991735,1778423445000,-8225.153718,0.0002739,2]
[421991732,1778423445000,-170.0,0.000273,3]
[421991734,1778423445000,-4163.50697488,0.0002739,2]
[421991741,1778423445000,-151.0,0.00027397,2]
[421991743,1778423445000,-214.7734975,0.000274,7]
[421991747,1778423445000,-710.50654426,0.00027891,2]
[421991745,1778423445000,-500.0,0.000278,7]
[421991736,1778423445000,-1500.0,0.00027397,2]
[421991754,1778423445000,-264.132818,0.00028,7]
[421991744,1778423445000,-203.87371813,0.000275,2]
[421991746,1778423445000,-248.4277885,0.00027836,2]
[421991749,1778423445000,-500.0,0.00027999,2]
[421991750,1778423445000,-28214.51288373,0.00028,2]
[421991751,1778423445000,-151.0,0.00028,7]
[421991748,1778423445000,-197.28556817,0.00027973,5]
[421991752,1778423445000,-151.0,0.00028,7]
[421991763,1778423445000,-624.0,0.00028233,2]
[421991757,1778423445000,-500.0,0.00028232,120]
[421991764,1778423445000,-926.0,0.00028233,2]
[421991742,1778423445000,-151.0,0.00027397,2]
[421991753,1778423445000,-151.0,0.00028,7]
[421991756,1778423445000,-212.91,0.00028,2]
[421991833,1778423446000,-152.0,0.00031501,30]
[421991836,1778423446000,-232.90451,0.00032,7]
[421991856,1778423446000,-278.636254,0.00032877,7]
[421991834,1778423446000,-186.37,0.00031963,2]
[421991835,1778423446000,-8702.15675816,0.00032,2]
[421991832,1778423446000,-643.0,0.00031501,30]
[421991825,1778423446000,-150.0,0.00031233,2]
[421991828,1778423446000,-152.0,0.00031497,30]
[421991831,1778423446000,-1000.0,0.000315,7]
[421991824,1778423446000,-154.88,0.00030786,2]
[421991830,1778423446000,-159.0,0.00031498,30]
[421991844,1778423446000,-254.99,0.000323,7]
[421991829,1778423446000,-188.0,0.00031497,30]
[421991843,1778423446000,-3982.40721688,0.00032205,2]
[421991845,1778423446000,-320.0,0.00032329,23]
[421991842,1778423446000,-304.0,0.00032149,5]
[421991840,1778423446000,-151.0,0.00032,7]
[421991838,1778423446000,-232.90451,0.00032,7]
[421991839,1778423446000,-232.90451,0.00032,7]
[421991841,1778423446000,-343.0,0.00032149,5]
[421991848,1778423446000,-159.0,0.00032498,30]
[421991850,1778423446000,-643.0,0.00032501,30]
[421991851,1778423446000,-152.0,0.00032501,30]
[421991849,1778423446000,-14676.34,0.000325,7]
[421991847,1778423446000,-188.0,0.00032497,30]
[421991852,1778423446000,-155.97,0.00032829,7]
[421991853,1778423446000,-154.88,0.00032829,7]
[421991846,1778423446000,-152.0,0.00032497,30]
[421991827,1778423446000,-348.595,0.00031233,2]
[421991837,1778423446000,-232.90451,0.00032,7]
[421991821,1778423446000,-152.0,0.00030501,30]
[421991793,1778423446000,-254.99,0.000295,7]
[421991823,1778423446000,-155.97,0.00030786,2]
[421991790,1778423446000,-1000.0,0.000294,2]
[421991791,1778423446000,-314.0,0.000294,2]
[421991794,1778423446000,-1369.30387443,0.00029872,2]
[421991795,1778423446000,-3388.0638082,0.00029962,2]
[421991796,1778423446000,-7610.7854247,0.00029966,2]
[421991792,1778423446000,-151.0,0.00029491,7]
[421991797,1778423446000,-151.0,0.00029972,7]
[421991803,1778423446000,-14676.34,0.0003,7]
[421991800,1778423446000,-1060.702103,0.00029972,2]
[421991798,1778423446000,-46475.6079584,0.00029972,2]
[421991804,1778423446000,-151.0,0.0003,7]
[421991799,1778423446000,-17637.946363,0.00029972,2]
[421991802,1778423446000,-500.0,0.0003,2]
[421991801,1778423446000,-795.665336,0.0003,2]
[421991806,1778423446000,-300.0,0.0003,5]
[421991807,1778423446000,-300.0,0.0003,5]
[421991816,1778423446000,-152.0,0.00030497,30]
[421991805,1778423446000,-151.0,0.0003,7]
[421991817,1778423446000,-152.7242559,0.00030497,30]
[421991810,1778423446000,-300.0,0.0003,5]
[421991809,1778423446000,-300.0,0.0003,5]
[421991812,1778423446000,-643.15357132,0.0003013,2]
[421991811,1778423446000,-300.0,0.0003,5]
[421991814,1778423446000,-185.84,0.00030181,120]
[421991813,1778423446000,-645.70387265,0.00030137,2]
[421991815,1778423446000,-2578.0,0.000303,30]
[421991818,1778423446000,-188.0,0.00030497,30]
[421991820,1778423446000,-643.0,0.00030501,30]
[421991822,1778423446000,-269.21966154,0.0003065,2]
[421991819,1778423446000,-159.0,0.00030498,30]
[421991854,1778423446000,-278.636254,0.00032877,7]
[421991826,1778423446000,-624.0,0.00031233,2]
[421991855,1778423446000,-278.636254,0.00032877,7]
[421991890,1778423446000,-150.0,0.00034233,2]
[421991888,1778423446000,-254.99,0.00034,30]
[421991894,1778423446000,-16289.3688588,0.00034298,2]
[421991889,1778423446000,-150.0,0.00034233,2]
[421991893,1778423446000,-248.4277885,0.00034298,2]
[421991897,1778423446000,-188.0,0.00034497,30]
[421991899,1778423446000,-14676.34,0.000345,7]
[421991901,1778423446000,-152.0,0.00034501,30]
[421991900,1778423446000,-643.0,0.00034501,30]
[421991902,1778423446000,-155.1,0.00034595,7]
[421991903,1778423446000,-659.46736312,0.00034616,2]
[421991898,1778423446000,-159.0,0.00034498,30]
[421991909,1778423446000,-500.0,0.00034845,3]
[421991908,1778423446000,-500.0,0.00034845,3]
[421991904,1778423446000,-155.04,0.00034646,7]
[421991906,1778423446000,-1500.0,0.00034795,2]
[421991907,1778423446000,-630.51,0.00034841,30]
[421991905,1778423446000,-170.0,0.0003465,3]
[421991913,1778423446000,-500.0,0.00034845,3]
[421991911,1778423446000,-500.0,0.00034845,3]
[421991917,1778423446000,-155.1,0.0003494,30]
[421991910,1778423446000,-500.0,0.00034845,3]
[421991916,1778423446000,-154.88,0.00034872,30]
[421991919,1778423446000,-450.0,0.00035045,2]
[421991912,1778423446000,-500.0,0.00034845,3]
[421991915,1778423446000,-155.97,0.00034872,30]
[421991918,1778423446000,-155.04,0.00034988,30]
[421991920,1778423446000,-437.4,0.00035045,2]
[421991857,1778423446000,-278.636254,0.00032877,7]
[421991891,1778423446000,-499.862,0.00034233,2]
[421991892,1778423446000,-155.1,0.0003425,2]
[421991914,1778423446000,-160.02509443,0.00034845,3]
[421991895,1778423446000,-155.04,0.00034305,2]
[421991887,1778423446000,-164.72,0.00033656,2]
[421991859,1778423446000,-278.636254,0.00032877,7]
[421991870,1778423446000,-4979.09983931,0.000329,120]
[421991858,1778423446000,-278.636254,0.00032877,7]
[421991862,1778423446000,-278.636254,0.00032877,7]
[421991860,1778423446000,-278.636254,0.00032877,7]
[421991863,1778423446000,-278.636254,0.00032877,7]
[421991864,1778423446000,-278.636254,0.00032877,7]
[421991861,1778423446000,-278.636254,0.00032877,7]
[421991865,1778423446000,-278.636254,0.00032877,7]
[421991866,1778423446000,-278.636254,0.00032877,7]
[421991867,1778423446000,-278.636254,0.00032877,7]
[421991868,1778423446000,-278.636254,0.00032877,7]
[421991871,1778423446000,-570.807798,0.00033,14]
[421991872,1778423446000,-755.9792201,0.00033321,2]
[421991869,1778423446000,-278.636254,0.00032877,7]
[421991883,1778423446000,-2587.918,0.00033615,36]
[421991884,1778423446000,-213.982,0.00033615,36]
[421991885,1778423446000,-151.0,0.00033649,14]
[421991886,1778423446000,-500.0,0.00033652,2]
[421991896,1778423446000,-152.0,0.00034497,30]
[421991882,1778423446000,-152.0,0.00033501,30]
[421991878,1778423446000,-188.0,0.00033497,30]
[421991880,1778423446000,-490.93997533,0.000335,2]
[421991881,1778423446000,-643.0,0.00033501,30]